bitfinex-derivatives/quotes_ETHF0:USTF0_20240817
["timestamp","ask_amount","ask_price","bid_price","bid_amount"]
[1723904139546,2.89238588,2606.5,2606.3,1.43862]
[1723904139747,0.34885588,2606.5,2606.3,3.54672948]
[1723904139949,0.34885588,2606.5,2606.4,1.36090948]
[1723904140245,0.00275588,2606.5,2606.4,3.90447948]
[1723904140552,0.00275588,2606.5,2606.4,5.82273365]
[1723904141050,0.00275588,2606.5,2606.4,4.81962417]
[1723904141353,0.00275588,2606.5,2606.4,5.82310372]
[1723904142452,0.00275588,2606.5,2606.4,4.8195632]
[1723904142948,0.00275588,2606.5,2606.4,6.32537367]
[1723904143142,0.00275588,2606.5,2606.4,4.8195632]
[1723904143339,0.00275588,2606.5,2606.4,5.82314061]
[1723904144654,0.00275588,2606.5,2606.4,4.8195632]
[1723904145358,0.00275588,2606.5,2606.4,5.82311036]
[1723904146148,0.00275588,2606.5,2606.4,5.82311999]
[1723904146952,0.00275588,2606.5,2606.4,5.82312161]
[1723904147347,0.00275588,2606.5,2606.4,4.81957283]
[1723904147659,0.00275588,2606.5,2606.4,6.3253833]
[1723904147854,0.00275588,2606.5,2606.4,5.82309161]
[1723904148356,0.00275588,2606.5,2606.4,4.81957283]
[1723904148759,0.00275588,2606.5,2606.4,5.82318722]
[1723904148962,0.00275588,2606.5,2606.4,4.81957283]
[1723904149353,0.00275588,2606.5,2606.4,3.71457283]
[1723904149757,0.00275588,2606.5,2606.4,5.2203833]
[1723904149956,0.00275588,2606.5,2606.4,5.22036392]
[1723904150161,0.00275588,2606.5,2606.4,4.71828256]
[1723904150350,0.00275588,2606.5,2606.4,3.7145669]
[1723904150954,0.00275588,2606.5,2606.4,3.3567669]
[1723904151148,0.00275588,2606.5,2606.4,1.00383339]
[1723904151452,0.00275588,2606.5,2606.4,2.44240339]
[1723904152057,0.00275588,2606.5,2606.4,4.36067495]
[1723904153457,0.00275588,2606.5,2606.4,5.47008049]
[1723904155465,0.00275588,2606.5,2606.4,5.47008268]
[1723904155969,0.00014721,2606.5,2606.4,5.47008268]
[1723904156267,0.00014721,2606.5,2606.4,5.06927221]
[1723904156666,0.00014721,2606.5,2606.4,4.46184375]
[1723904156968,0.00014721,2606.5,2606.4,5.06925449]
[1723904157665,0.00014721,2606.5,2606.4,7.07649223]
[1723904158969,0.00014721,2606.5,2606.4,10.91283091]
[1723904159164,0.00014721,2606.5,2606.4,7.07649223]
[1723904160170,0.00014721,2606.5,2606.4,7.07645799]
[1723904160565,0.00014721,2606.5,2606.4,7.07645541]
[1723904161172,0.00014721,2606.5,2606.4,6.4690358]
[1723904161368,0.00014721,2606.5,2606.4,7.07645587]
[1723904161969,0.00014721,2606.5,2606.4,3.96421813]
[1723904162159,0.00014721,2606.5,2606.4,5.97145587]
[1723904163470,0.00014721,2606.5,2606.4,9.20055228]
[1723904163671,0.00014721,2606.5,2606.4,9.80788003]
[1723904164468,0.00014721,2606.5,2606.4,8.90564229]
[1723904164669,0.00014721,2606.5,2606.4,11.41468947]
[1723904164871,0.00014721,2606.5,2606.4,8.90564229]
[1723904165373,0.00014721,2606.5,2606.4,11.78728947]
[1723904165769,0.00014721,2606.5,2606.4,9.27824229]
[1723904166374,0.00014721,2606.5,2606.4,11.78728947]
[1723904167265,0.00014721,2606.5,2606.4,15.62408947]
[1723904167469,0.00014721,2606.5,2606.4,15.01676172]
[1723904167777,0.00014721,2606.5,2606.4,15.62391863]
[1723904168171,0.00014721,2606.5,2606.4,17.54179128]
[1723904168373,0.7458,2606.9,2606.4,18.42753785]
[1723904168674,1.43808,2607.3,2606.8,2.51306231]
[1723904168876,0.7173,2607.2,2607.1,1.50754201]
[1723904169067,0.7173,2607.2,2607.1,4.03282192]
[1723904169470,0.72223048,2607.2,2607.1,3.53003674]
[1723904169669,0.72223048,2607.2,2607.1,2.52527991]
[1723904170071,0.72223048,2607.2,2607.1,2.92289678]
[1723904170271,0.72223048,2607.2,2607.1,3.52979723]
[1723904170472,1.82723048,2607.2,2607.1,3.52959601]
[1723904170670,1.82723048,2607.2,2607.1,1.00457004]
[1723904171577,1.43818,2607.1,2607.0,1.00457004]
[1723904171877,2.91998,2607.1,2607.0,2.92255532]
[1723904172066,6.75598,2607.1,2607.0,2.92255532]
[1723904172265,6.75598,2607.1,2607.0,2.52496706]
[1723904172462,6.75598,2607.1,2607.0,3.52943731]
[1723904172663,6.75598,2607.1,2607.0,1.00447025]
[1723904173068,6.75598,2607.1,2607.0,2.92242835]
[1723904173268,6.75598,2607.1,2607.0,1.00447025]
[1723904174491,5.3178,2607.1,2607.0,1.00447025]
[1723904175374,1.81498,2607.1,2607.0,1.00447025]
[1723904175877,0.3768,2607.1,2607.0,2.52493515]
[1723904176084,0.3768,2607.1,2607.0,1.00428705]
[1723904176085,1.81498,2607.1,2607.0,1.00428705]
[1723904176272,0.3768,2607.1,2607.0,2.922205]
[1723904176473,0.3768,2607.1,2607.0,1.00428705]
[1723904177176,4.2128,2607.1,2607.0,1.00428705]
[1723904180991,1.82723048,2607.2,2607.0,1.00428705]
[1723904181181,1.82723048,2607.2,2607.0,1.35298705]
[1723904181487,1.82723048,2607.2,2607.0,2.79121705]
[1723904181680,0.72223048,2607.2,2607.0,3.89621705]
[1723904181880,0.72223048,2607.2,2607.0,2.45798705]
[1723904182080,0.00493048,2607.2,2607.1,3.54746705]
[1723904182280,0.7429,2607.5,2607.4,1.43801]
[1723904182591,0.7429,2607.5,2607.4,3.54719623]
[1723904183084,0.7429,2607.5,2607.4,6.65694515]
[1723904183284,0.74560984,2607.5,2607.4,7.26404983]
[1723904183480,0.74560984,2607.5,2607.4,5.14940314]
[1723904183675,0.00270984,2607.5,2607.4,6.15305185]
[1723904183991,0.00270984,2607.5,2607.4,6.65694515]
[1723904184186,0.00270984,2607.5,2607.4,5.14940314]
[1723904184490,0.00270984,2607.5,2607.4,6.15285902]
[1723904185389,0.00270984,2607.5,2607.4,4.23536588]
[1723904186692,0.00270984,2607.5,2607.4,6.15281948]
[1723904187194,0.00270984,2607.5,2607.4,10.49210561]
[1723904187395,4.113,2608.1,2607.8,1.43779]
[1723904187695,0.7186,2608.0,2607.9,1.8284]
[1723904188289,0.00388471,2608.0,2607.9,7.10548574]
[1723904188494,0.00388471,2608.0,2607.9,4.27214056]
[1723904188786,0.00388471,2608.0,2607.9,8.10654056]
[1723904189508,0.00388471,2608.0,2607.9,7.10548574]
[1723904189691,0.00388471,2608.0,2607.9,3.27108574]
[1723904190583,0.00388471,2608.0,2607.9,7.10548574]
[1723904190785,0.00388471,2608.0,2607.9,3.27108574]
[1723904190981,0.00388471,2608.0,2607.9,0.72834574]
[1723904191285,4.94328471,2608.0,2607.9,0.00494574]
[1723904191494,0.00388471,2608.0,2607.9,1.10994574]
[1723904191696,1.44156471,2608.0,2607.9,1.10994574]
[1723904192698,1.44156471,2608.0,2607.9,0.00494574]
[1723904192880,5.27596471,2608.0,2607.9,0.00494574]
[1723904194399,0.00388471,2608.0,2607.9,0.00494574]
[1723904194692,0.00388471,2608.0,2607.9,1.10994574]
[1723904196097,0.00388471,2608.0,2607.9,2.54768574]
[1723904201697,0.00388471,2608.0,2607.9,0.00494574]
[1723904202602,0.36868471,2608.0,2607.9,0.00494574]
[1723904202795,7.12076471,2608.0,2607.9,0.00494574]
[1723904203701,8.55844471,2608.0,2607.9,0.00494574]
[1723904204604,12.12076471,2608.0,2607.5,3.2078]
[1723904204793,1.4379,2607.7,2607.5,3.2078]
[1723904205104,1.4379,2607.6,2607.5,3.2078]
[1723904205311,1.8003,2607.6,2607.5,3.2078]
[1723904205497,0.3624,2607.6,2607.5,3.2078]
[1723904205697,5.6355,2607.6,2607.5,3.21242263]
[1723904209199,5.6355,2607.6,2607.5,4.31742263]
[1723904209394,4.1976,2607.6,2607.5,4.31742263]
[1723904210107,4.1976,2607.6,2607.5,4.68352263]
[1723904211903,1.84868471,2608.0,2607.5,4.68352263]
[1723904212109,1.4378,2607.8,2607.6,1.105]
[1723904212912,1.43785,2607.7,2607.5,3.57852263]
[1723904213110,1.43785,2607.7,2607.5,4.68352263]
[1723904213313,1.43785,2607.7,2607.5,6.12148263]
[1723904214113,1.43781,2607.8,2607.5,6.12148263]
[1723904214310,1.43781,2607.8,2607.5,5.01648263]
[1723904214519,1.4379,2607.6,2607.5,3.21242263]
[1723904214911,5.2731,2607.6,2607.5,3.21242263]
[1723904215812,6.3781,2607.6,2607.5,0.00462263]
[1723904216010,16.0238,2607.6,2607.5,0.00462263]
[1723904216215,1.43823,2607.0,2606.9,0.00574911]
[1723904216412,2.54315,2607.2,2606.9,1.11074911]
[1723904216611,0.3423,2607.1,2606.9,1.11074911]
[1723904216814,1.78048,2607.1,2607.0,1.105]
[1723904217016,1.43823,2607.0,2606.9,0.00574911]
[1723904217222,1.79983,2607.0,2606.9,0.00923533]
[1723904218316,6.74083,2607.0,2606.9,0.00923533]
[1723904218510,9.94863,2607.0,2606.9,0.00923533]
[1723904219525,1.43841,2606.7,2606.1,2.10605482]
[1723904219716,1.105,2606.4,2606.1,2.10605482]
[1723904219915,0.367,2606.6,2606.1,1.00105482]
[1723904219916,1.43866,2606.3,2606.1,1.00105482]
[1723904220114,0.367,2606.6,2606.0,0.7261]
[1723904220115,0.6947,2606.5,2606.0,1.38035482]
[1723904220315,1.43873,2606.1,2605.9,3.2078]
[1723904220526,1.4423573,2606.1,2605.9,3.21209998]
[1723904220918,1.43879,2606.0,2605.9,0.00429998]
[1723904221118,5.64339,2606.0,2605.9,0.00429998]
[1723904223030,4.2046,2606.0,2605.9,0.00429998]
[1723904223219,0.0036273,2606.1,2605.9,0.00429998]
[1723904225735,0.0036273,2606.1,2605.9,1.44313998]
[1723904226229,0.0036273,2606.1,2606.0,0.3783]
[1723904226832,0.0036273,2606.1,2606.0,1.81709]
[1723904228937,0.0036273,2606.1,2606.0,0.3783]
[1723904231238,3.8412273,2606.1,2605.9,1.44312998]
[1723904231440,5.27639,2606.0,2605.9,0.00429998]
[1723904231737,1.43879,2606.0,2605.9,0.00429998]
[1723904233335,1.4423873,2606.1,2605.9,0.00429998]
[1723904233537,1.43879,2606.0,2605.9,0.00429998]
[1723904235931,1.81539,2606.0,2605.9,0.00429998]
[1723904236440,10.65299,2606.0,2605.9,0.00429998]
[1723904236643,12.80658,2606.0,2605.9,0.00429998]
[1723904237839,7.80658,2606.0,2605.9,0.00429998]
[1723904238033,12.80658,2606.0,2605.9,0.00429998]
[1723904241143,7.80658,2606.0,2605.9,0.00429998]
[1723904243937,8.91158,2606.0,2605.9,0.00429998]
[1723904244835,1.4389,2605.8,2605.7,0.00574911]
[1723904245051,3.9828,2605.8,2605.7,0.00574911]
[1723904245646,7.8204,2605.8,2605.7,0.00574911]
[1723904245838,3.9828,2605.8,2605.7,0.00860457]
[1723904246555,7.8204,2605.8,2605.7,0.00860457]
[1723904247049,3.9828,2605.8,2605.7,0.00860457]
[1723904247546,7.8204,2605.8,2605.7,0.00860457]
[1723904247734,12.8204,2605.8,2605.7,0.00860457]
[1723904250346,6.3815,2605.8,2605.7,0.00860457]
[1723904251143,7.8204,2605.8,2605.7,0.00860457]
[1723904251343,6.3815,2605.8,2605.7,0.00860457]
[1723904252735,12.8204,2605.8,2605.7,0.00860457]
[1723904252939,6.3815,2605.8,2605.7,0.00860457]
[1723904253941,7.8204,2605.8,2605.7,0.00860457]
[1723904255752,12.8204,2605.8,2605.7,0.00860457]
[1723904256953,1.43917,2605.3,2605.2,0.3532]
[1723904257446,1.43917,2605.3,2604.6,3.2078]
[1723904257447,5.27758,2605.3,2604.6,1.105]
[1723904257650,1.43932,2605.1,2605.0,0.3671]
[1723904258043,4.64712,2605.1,2605.0,0.37028574]
[1723904258361,1.43939,2604.9,2604.8,0.00574911]
[1723904258653,2.87878,2604.9,2604.8,0.00574911]
[1723904258952,1.43939,2604.9,2604.8,0.37284911]
[1723904259335,1.43939,2604.9,2604.8,0.37732346]
[1723904259943,6.71798,2604.9,2604.8,0.01022346]
[1723904260146,7.07188,2604.9,2604.8,0.01022346]
[1723904261852,10.27968,2604.9,2604.8,0.01022346]
[1723904262857,1.43961,2604.5,2604.4,0.7236]
[1723904263738,1.43961,2604.5,2604.4,0.72849962]
[1723904264749,5.27881,2604.5,2604.4,0.72849962]
[1723904266252,6.71842,2604.5,2604.4,0.00489962]
[1723904266456,9.37242,2604.5,2604.4,0.00489962]
[1723904266750,9.71452,2604.5,2604.4,0.00489962]
[1723904267748,2.87946,2604.3,2604.2,0.00574911]
[1723904267951,2.87946,2604.3,2604.1,0.71210655]
[1723904267952,1.43978,2604.2,2604.1,0.71210655]
[1723904268156,3.22716,2604.2,2604.1,0.71210655]
[1723904268351,5.88116,2604.2,2604.1,0.71210655]
[1723904268550,9.72116,2604.2,2604.1,0.71210655]
[1723904268944,9.72567388,2604.2,2604.1,0.71609976]
[1723904270456,9.72567388,2604.2,2604.1,0.35249321]
[1723904270762,14.72567388,2604.2,2604.1,0.00399321]
[1723904271061,9.72567388,2604.2,2604.1,0.00399321]
[1723904271254,16.16545388,2604.2,2604.1,0.00399321]
[1723904271556,27.08945388,2604.2,2604.1,0.00399321]
[1723904272258,20.64967388,2604.2,2604.1,0.00399321]
[1723904275459,12.36829388,2604.2,2604.1,0.00399321]
[1723904277556,1.44429388,2604.2,2604.1,0.00399321]
[1723904279356,2.88407388,2604.2,2604.1,0.00399321]
[1723904279663,6.72407388,2604.2,2604.1,0.00399321]
[1723904280368,11.72407388,2604.2,2604.1,0.00399321]
[1723904280561,16.17345388,2604.2,2604.1,0.00399321]
[1723904281267,16.17345388,2604.2,2604.1,3.21e-06]
[1723904281670,14.73367388,2604.2,2604.1,3.21e-06]
[1723904282261,16.17345388,2604.2,2604.1,3.21e-06]
[1723904282666,1.44018,2603.5,2603.2,1.4403]
[1723904282974,1.44022,2603.4,2603.3,0.371]
[1723904283664,1.44022,2603.4,2603.3,0.3745178]
[1723904285170,2.88044,2603.4,2603.3,0.3745178]
[1723904285360,5.53444,2603.4,2603.3,0.3745178]
[1723904286072,1.44022,2603.4,2603.3,0.3745178]
[1723904286368,1.44022,2603.4,2603.3,0.0035178]
[1723904288769,9.37604,2603.4,2603.3,0.0035178]
[1723904289466,8.30182,2603.4,2603.3,0.0035178]
[1723904291064,9.74204,2603.4,2603.3,0.0035178]
[1723904291264,8.30182,2603.4,2603.3,0.0035178]
[1723904291570,7.93582,2603.4,2603.3,0.0035178]
[1723904292459,4.09422,2603.4,2603.3,0.0035178]
[1723904293063,9.37604,2603.4,2603.3,0.0035178]
[1723904293869,7.93582,2603.4,2603.3,0.0035178]
[1723904294070,9.37604,2603.4,2603.3,0.0035178]
[1723904294971,7.93582,2603.4,2603.3,0.0035178]
[1723904295774,9.37604,2603.4,2603.3,0.0035178]
[1723904295975,7.93582,2603.4,2603.3,0.0035178]
[1723904296767,4.09422,2603.4,2603.3,0.0035178]
[1723904297168,7.93582,2603.4,2603.3,0.0035178]
[1723904297571,9.37604,2603.4,2603.3,0.0035178]
[1723904297772,7.93582,2603.4,2603.3,0.0035178]
[1723904298076,9.37604,2603.4,2603.3,0.0035178]
[1723904302191,14.37604,2603.4,2603.3,0.0035178]
[1723904302678,9.37604,2603.4,2603.3,0.0035178]
[1723904303268,14.37604,2603.4,2603.3,0.0035178]
[1723904303976,9.37604,2603.4,2603.3,0.0035178]
[1723904304482,5.53444,2603.4,2603.3,0.0035178]
[1723904305184,14.37604,2603.4,2603.3,0.0035178]
[1723904306181,9.37604,2603.4,2603.3,0.0035178]
[1723904306383,14.37604,2603.4,2603.3,0.0035178]
[1723904306978,12.93582,2603.4,2603.1,0.00576026]
[1723904307177,12.93582,2603.4,2602.5,0.7233]
[1723904307178,4.09433,2603.2,2602.5,0.7233]
[1723904307480,2.654,2602.7,2602.5,0.7233]
[1723904307780,2.654,2603.2,2602.6,1.44064]
[1723904307981,4.64829,2603.0,2602.6,0.36279335]
[1723904308180,1.44061,2602.7,2602.6,0.36279335]
[1723904308778,1.44061,2602.7,2602.6,0.00469335]
[1723904310089,1.44061,2602.7,2602.6,0.38149335]
[1723904311981,1.44061,2602.7,2602.6,4.22389335]
[1723904313486,1.44061,2602.7,2602.6,0.38149335]
[1723904313890,2.54761,2602.7,2602.6,0.38149335]
[1723904314086,1.107,2602.7,2602.6,5.66455335]
[1723904314284,1.107,2602.7,2602.6,4.22389335]
[1723904315187,2.54761,2602.7,2602.6,0.00469335]
[1723904317894,1.44061,2602.7,2602.6,0.00469335]
[1723904318085,1.79041,2602.7,2602.6,0.00469335]
[1723904318485,4.99821,2602.7,2602.6,0.00469335]
[1723904319290,6.43882,2602.7,2602.6,0.00469335]
[1723904319487,10.28122,2602.7,2602.6,0.00469335]
[1723904321695,6.43882,2602.7,2602.6,0.00469335]
[1723904322001,10.28122,2602.7,2602.6,0.00469335]
[1723904324393,1.79041,2602.7,2602.6,0.00469335]
[1723904324603,1.44061,2602.7,2602.6,0.00469335]
[1723904325189,1.44061,2602.7,2602.6,3.84709335]
[1723904325395,4.09658,2602.8,2602.6,3.84709335]
[1723904325597,4.09658,2602.8,2602.6,0.00469335]
[1723904325798,3.5613,2603.0,2602.6,0.00469335]
[1723904326003,1.44048,2603.0,2602.7,1.44061]
[1723904326189,0.00576026,2603.1,2602.7,3.8416]
[1723904326389,1.44045,2603.0,2602.7,2.44164482]
[1723904326797,1.44045,2603.0,2602.7,6.28324482]
[1723904328395,1.44045,2603.0,2602.7,6.28323482]
[1723904329204,1.44045,2603.0,2602.7,6.28322482]
[1723904330288,0.00576026,2603.1,2602.8,1.00105482]
[1723904330289,1.4405,2602.9,2602.8,1.00105482]
[1723904330492,1.44047,2603.0,2602.7,2.44162482]
[1723904330693,1.4405,2602.9,2602.7,2.44162482]
[1723904331089,1.4405,2602.9,2602.8,1.00105482]
[1723904331290,1.4405,2602.9,2602.8,4.84345482]
[1723904331594,1.44618026,2603.1,2602.8,5.19725482]
[1723904331795,1.44618026,2603.1,2602.9,2.4457402]
[1723904332003,0.00576026,2603.1,2603.0,0.3786]
[1723904332189,0.00576026,2603.1,2603.0,1.81904]
[1723904332593,0.00576026,2603.1,2603.0,7.5813411]
[1723904332793,0.00576026,2603.1,2603.0,9.69270696]
[1723904332998,0.00030816,2603.1,2603.0,9.69270696]
[1723904333291,3.2078,2603.6,2603.0,9.69270696]
[1723904333292,3.2078,2603.6,2603.0,11.748799]
[1723904333499,3.2078,2603.6,2603.4,1.44019]
[1723904333691,3.2078,2603.6,2603.5,0.3599]
[1723904333887,4.64791,2603.6,2603.5,0.3599]
[1723904334088,4.64791,2603.6,2603.5,4.2007]
[1723904334288,1.44028,2603.3,2603.2,1.00480597]
[1723904334494,1.44033,2603.2,2603.1,1.36350597]
[1723904334694,1.44033,2603.2,2603.1,0.3587]
[1723904334903,1.44031,2603.3,2603.1,0.3587]
[1723904335496,1.44026,2603.4,2603.1,1.79904]
[1723904336198,1.44029,2603.3,2603.1,1.79904]
[1723904336507,1.44025,2603.4,2603.2,0.3789]
[1723904338307,1.44025,2603.4,2603.2,1.81922]
[1723904338499,0.6889,2603.5,2603.2,1.81922]
[1723904338500,2.1291,2603.5,2603.2,1.81922]
[1723904338704,7.30393,2603.6,2603.3,1.44028]
[1723904340305,7.30395,2603.6,2603.3,1.44025]
[1723904340505,1.4402,2603.5,2603.2,2.82400597]
[1723904340704,1.4402,2603.5,2603.2,1.8192]
[1723904340894,1.4402,2603.5,2603.2,5.6608]
[1723904341402,5.8638,2603.6,2603.2,1.81921]
[1723904341403,1.44023,2603.4,2603.2,1.81921]
[1723904342401,1.4402,2603.5,2603.2,1.81921]
[1723904343404,1.4402,2603.5,2603.3,1.44027]
[1723904343600,1.4402,2603.5,2603.2,0.3789]
[1723904343601,1.44017,2603.5,2603.2,1.81921]
[1723904344005,1.106,2603.3,2603.2,1.81921]
[1723904344513,1.106,2603.3,2603.2,5.66081]
[1723904344708,1.106,2603.3,2603.2,1.81921]
[1723904345408,2.54628,2603.3,2603.2,0.3789]
[1723904346108,1.44039,2603.1,2603.0,1.00480597]
[1723904346410,1.44048,2603.0,2602.8,0.7125]
[1723904346602,2.5465,2602.9,2602.8,0.7125]
[1723904347902,1.4405,2602.9,2602.8,0.7125]
[1723904349614,1.44046,2603.0,2602.8,2.15305]
[1723904349815,1.44039,2603.1,2602.9,1.44048]
[1723904349999,0.7408,2603.2,2602.8,2.15302]
[1723904350000,1.44045,2603.0,2602.8,2.15302]
[1723904350202,1.4405,2602.9,2602.8,0.7125]
[1723904351809,1.44047,2603.0,2602.8,2.15305]
[1723904352109,1.44037,2603.2,2603.0,1.44042]
[1723904352313,1.44041,2603.1,2602.9,1.44047]
[1723904352606,1.44041,2603.1,2602.8,2.15301]
[1723904352807,3.5639,2603.3,2602.9,1.44047]
[1723904353005,0.3561,2603.3,2602.8,0.7125]
[1723904353204,1.44035,2603.2,2603.0,1.44042]
[1723904354413,1.44035,2603.2,2602.9,1.44047]
[1723904354604,1.4404,2603.1,2602.9,1.44047]
[1723904355001,1.80487,2603.0,2602.8,0.7125]
[1723904355310,0.3644,2603.0,2602.8,0.7125]
[1723904355514,1.7824,2602.9,2602.8,0.3561]
[1723904355913,0.3419,2602.9,2602.8,0.3561]
[1723904356106,1.7824,2602.9,2602.8,0.3561]
[1723904357712,1.80488,2603.0,2602.8,1.79665]
[1723904357917,1.80488,2603.0,2602.8,0.3561]
[1723904357918,0.3644,2603.0,2602.8,0.3561]
[1723904358104,0.3644,2603.0,2602.8,1.79662]
[1723904358509,1.80484,2603.0,2602.8,1.79662]
[1723904359419,0.3644,2603.0,2602.9,1.4405]
[1723904359617,1.44042,2603.1,2602.9,1.4405]
[1723904359823,2.656,2603.2,2603.0,1.44044]
[1723904360012,3.2078,2603.7,2603.0,4.2104]
[1723904360211,1.44013,2603.6,2603.4,1.44022]
[1723904360811,1.44013,2603.6,2603.5,0.73]
[1723904362309,3.9111,2603.7,2603.5,0.73]
[1723904362526,0.00576026,2603.8,2603.6,1.44009]
[1723904362713,0.00576026,2603.8,2603.5,0.73]
[1723904362714,0.00576026,2603.8,2603.5,2.17014]
[1723904363111,0.00576026,2603.8,2603.5,3.17494597]
[1723904363409,0.00576026,2603.8,2603.5,2.17014]
[1723904364020,1.44576026,2603.8,2603.5,2.17014]
[1723904365318,1.44576026,2603.8,2603.6,1.44011]
[1723904365529,0.00576026,2603.8,2603.7,1.44006]
[1723904365910,0.00576026,2603.8,2603.7,5.28086]
[1723904366123,1.44580026,2603.8,2603.5,2.17013]
[1723904366322,1.44007,2603.7,2603.5,0.73]
[1723904366525,0.3617,2603.7,2603.5,2.17016]
[1723904367413,0.00576026,2603.8,2603.6,1.44011]
[1723904367624,0.00576026,2603.8,2603.7,1.44006]
[1723904369625,0.00576026,2603.8,2603.6,1.44009]
[1723904370722,0.00576026,2603.8,2603.7,1.44006]
[1723904372029,1.11176026,2603.8,2603.7,1.44006]
[1723904372221,1.11176026,2603.8,2603.7,5.28086]
[1723904372422,1.11176026,2603.8,2603.7,3.8408]
[1723904372813,1.44008,2603.7,2603.5,1.73480597]
[1723904373125,1.4514,2603.6,2603.5,0.73]
[1723904375831,2.89151,2603.6,2603.5,0.73]
[1723904376028,1.78551,2603.6,2603.5,0.73]
[1723904378322,0.3454,2603.6,2603.5,0.73]
[1723904380732,1.78551,2603.6,2603.5,0.73]
[1723904380928,1.44017,2603.5,2603.3,1.00480597]
[1723904381125,1.44017,2603.5,2603.4,0.726]
[1723904381333,0.3454,2603.6,2603.4,2.16622]
[1723904381528,1.78551,2603.6,2603.4,2.16622]
[1723904381724,1.44017,2603.5,2603.4,0.726]
[1723904382531,0.3454,2603.6,2603.4,0.726]
[1723904382931,1.78554,2603.6,2603.4,0.726]
[1723904384926,1.44017,2603.5,2603.4,0.358]
[1723904385129,0.3454,2603.6,2603.2,0.3692]
[1723904385325,1.44028,2603.3,2603.2,0.3692]
[1723904385637,1.44028,2603.3,2603.1,0.3469]
[1723904385638,1.44033,2603.2,2603.1,0.3469]
[1723904385833,0.3687,2603.2,2603.1,0.3469]
[1723904386033,1.44044,2603.0,2602.9,0.3692]
[1723904386236,1.80523,2603.1,2602.9,0.3692]
[1723904386836,1.44044,2603.0,2602.9,0.3692]
[1723904387623,1.44052,2602.9,2602.7,1.35170597]
[1723904387829,1.44052,2602.9,2602.7,0.3469]
[1723904388029,0.3592,2602.8,2602.7,1.7875]
[1723904388628,0.3592,2602.8,2602.7,5.6299]
[1723904389034,0.3592,2602.8,2602.7,4.1893]
[1723904389236,0.3592,2602.8,2602.7,5.62991]
[1723904389442,1.80522,2603.1,2602.9,1.4405]
[1723904389747,1.80522,2603.1,2602.8,1.44052]
[1723904390038,1.80522,2603.1,2602.9,1.44049]
[1723904390539,0.3758,2603.2,2603.0,0.3526]
[1723904390836,1.81615,2603.2,2603.0,1.79303]
[1723904391033,1.81616,2603.2,2602.9,1.44047]
[1723904391534,0.3758,2603.2,2602.9,0.3526]
[1723904391735,1.44039,2603.1,2602.9,0.3526]
[1723904392129,1.44044,2603.0,2602.9,0.3526]
[1723904392837,0.3758,2603.2,2602.9,1.79309]
[1723904392838,1.44042,2603.1,2602.9,1.79309]
[1723904393332,3.5685,2603.4,2603.0,1.44043]
[1723904393539,1.44031,2603.3,2603.1,0.3502]
[1723904393727,1.79281,2603.3,2603.1,1.79055]
[1723904393931,1.79281,2603.3,2603.1,0.3502]
[1723904394438,1.44033,2603.2,2603.1,0.3502]
[1723904394639,1.79281,2603.3,2603.1,0.3502]
[1723904396040,1.44033,2603.2,2603.1,0.3502]
[1723904396945,1.4404,2603.1,2602.9,1.79306]
[1723904397242,0.3717,2603.0,2602.9,1.79306]
[1723904397840,1.4777,2603.0,2602.9,1.79306]
[1723904398042,1.4777,2603.0,2602.9,0.3526]
[1723904398242,1.4777,2603.0,2602.9,1.7931]
[1723904398544,2.91814,2603.0,2602.9,0.3526]
[1723904399541,2.54644,2603.0,2602.9,1.7931]
[1723904399740,1.106,2603.0,2602.9,1.7931]
[1723904399944,1.106,2603.0,2602.9,5.6347]
[1723904400342,2.54644,2603.0,2602.9,1.7931]
[1723904401243,2.54644,2603.0,2602.9,0.3526]
[1723904402239,2.54644,2603.0,2602.8,1.37410597]
[1723904402240,1.4405,2602.9,2602.8,1.37410597]
[1723904402448,1.7944,2602.9,2602.8,0.3693]
[1723904402831,1.4405,2602.9,2602.8,5.65145]
[1723904403043,1.7944,2602.9,2602.8,1.80985]
[1723904403750,1.7944,2602.9,2602.8,0.3693]
[1723904404545,0.3539,2602.9,2602.8,1.80985]
[1723904404848,1.7944,2602.9,2602.8,1.80985]
[1723904405037,1.7944,2602.9,2602.8,0.3693]
[1723904406742,1.7944,2602.9,2602.8,1.80985]
[1723904406941,0.3539,2602.9,2602.8,1.80985]
[1723904407839,1.7944,2602.9,2602.8,1.80985]
[1723904408035,3.5617,2602.9,2602.7,1.00480597]
[1723904408235,1.44061,2602.7,2602.6,0.00469335]
[1723904408646,6.72362,2602.7,2602.6,0.00469335]
[1723904415848,1.44061,2602.7,2602.6,0.00469335]
[1723904416053,1.106,2602.7,2602.6,0.00469335]
[1723904416350,2.54661,2602.7,2602.6,0.00469335]
[1723904419050,6.38901,2602.7,2602.6,0.00469335]
[1723904419252,2.54661,2602.7,2602.6,0.00469335]
[1723904419450,6.38901,2602.7,2602.6,0.00469335]
[1723904421047,9.59681,2602.7,2602.6,0.00469335]
[1723904421853,9.96141,2602.7,2602.6,0.00469335]
[1723904426848,11.40202,2602.7,2602.6,0.00469335]
[1723904428144,11.40202,2602.7,2602.5,0.00385875]
[1723904428347,7.08432,2602.6,2602.5,0.00385875]
[1723904429356,7.08432,2602.6,2602.5,0.00711745]
[1723904432257,4.6784,2602.7,2602.5,0.00711745]
[1723904432258,1.44064,2602.7,2602.5,0.00711745]
[1723904432553,2.54666,2602.6,2602.5,0.00711745]
[1723904433369,2.54666,2602.6,2602.5,0.37121745]
[1723904433556,1.106,2602.6,2602.5,0.37121745]
[1723904434060,1.106,2602.6,2602.5,0.71761745]
[1723904434250,2.54666,2602.6,2602.5,0.71761745]
[1723904435057,2.91196,2602.6,2602.5,0.71761745]
[1723904439053,0.3539,2602.9,2602.5,0.71761745]
[1723904439252,3.2078,2603.0,2602.6,0.3627]
[1723904439448,1.106,2602.7,2602.6,0.3627]
[1723904439656,2.54661,2602.7,2602.6,0.3627]
[1723904439863,2.54661,2602.7,2602.6,4.2051]
[1723904440059,1.106,2602.7,2602.6,4.2051]
[1723904440666,1.106,2602.7,2602.6,5.64576]
[1723904440965,1.106,2602.8,2602.7,1.44057]
[1723904441156,1.106,2602.8,2602.6,2.80814597]
[1723904441352,1.106,2602.7,2602.6,5.01114]